[Event "Live Chess"]
[Site "Chess.com"]
[Date "2024.06.01"]
[Round "-"]
[White "Cimon"]
[Black "DylanMeyer1"]
[Result "1-0"]
[WhiteElo "1836"]
[BlackElo "1713"]
[TimeControl "300"]
[EndTime "13:56:28 PDT"]
[Termination "Cimon won by checkmate"]

1. d4 {[%clk 0:04:57.6]} 1... d5 {[%clk 0:04:59]} 2. Nf3 {[%clk 0:04:55.7]} 2...
Nf6 {[%clk 0:04:58.4]} 3. c4 {[%clk 0:04:53.8]} 3... e6 {[%clk 0:04:57.8]} 4.
Nc3 {[%clk 0:04:51]} 4... Be7 {[%clk 0:04:55.2]} 5. g3 {[%clk 0:04:49.5]} 5...
dxc4 {[%clk 0:04:54.4]} 6. e4 {[%clk 0:04:45.8]} 6... O-O {[%clk 0:04:54.3]} 7.
Bxc4 {[%clk 0:04:43.7]} 7... c6 {[%clk 0:04:53]} 8. O-O {[%clk 0:04:39.2]} 8...
b5 {[%clk 0:04:52.5]} 9. Bd3 {[%clk 0:04:37.1]} 9... Bb7 {[%clk 0:04:52.1]} 10.
e5 {[%clk 0:04:26.4]} 10... Nd5 {[%clk 0:04:50.5]} 11. Nxd5 {[%clk 0:04:24.6]}
11... Qxd5 {[%clk 0:04:49.9]} 12. Re1 {[%clk 0:04:16.7]} 12... Na6 {[%clk
0:04:34.3]} 13. Be4 {[%clk 0:04:09.6]} 13... Qd7 {[%clk 0:04:32.5]} 14. Qd3
{[%clk 0:03:52.6]} 14... g6 {[%clk 0:04:30.2]} 15. Qe3 {[%clk 0:03:41.9]} 15...
c5 {[%clk 0:04:27.1]} 16. Qh6 {[%clk 0:03:33.8]} 16... cxd4 {[%clk 0:04:18.1]}
17. Ng5 {[%clk 0:03:29.4]} 17... Bxg5 {[%clk 0:04:12.6]} 18. Bxg5 {[%clk
0:03:27.7]} 18... f6 {[%clk 0:04:10.3]} 19. Bxf6 {[%clk 0:03:24.4]} 19... Rxf6
{[%clk 0:04:08.7]} 20. exf6 {[%clk 0:03:22.5]} 20... Nc5 {[%clk 0:04:07.4]} 21.
Bxg6 {[%clk 0:03:05.1]} 21... hxg6 {[%clk 0:03:54]} 22. Qxg6+ {[%clk 0:03:02.8]}
22... Kh8 {[%clk 0:03:49.5]} 23. Re5 {[%clk 0:02:58.6]} 23... Qh7 {[%clk
0:03:29.9]} 24. Rh5 {[%clk 0:02:56.3]} 24... Qxh5 {[%clk 0:03:29.5]} 25. Qxh5+
{[%clk 0:02:54.8]} 25... Kg8 {[%clk 0:03:28.1]} 26. Qg6+ {[%clk 0:02:52.1]}
26... Kf8 {[%clk 0:03:25.4]} 27. Qg7+ {[%clk 0:02:50.8]} 27... Ke8 {[%clk
0:03:24]} 28. Qe7# {[%clk 0:02:49.2]} 1-0

[Event "Live Chess"]
[Site "Chess.com"]
[Date "2024.06.01"]
[Round "-"]
[White "KeithArkell"]
[Black "IanCalvert2"]
[Result "1-0"]
[WhiteElo "2460"]
[BlackElo "1600"]
[TimeControl "300"]
[EndTime "13:56:33 PDT"]
[Termination "KeithArkell won by resignation"]

1. d4 {[%clk 0:04:57.6]} 1... d5 {[%clk 0:04:42.8]} 2. c4 {[%clk 0:04:55.9]}
2... c6 {[%clk 0:04:41.1]} 3. Nf3 {[%clk 0:04:55.2]} 3... Nf6 {[%clk 0:04:38.9]}
4. Nc3 {[%clk 0:04:54.4]} 4... dxc4 {[%clk 0:04:36.1]} 5. a4 {[%clk 0:04:52.9]}
5... e6 {[%clk 0:04:32.5]} 6. e3 {[%clk 0:04:51.1]} 6... c5 {[%clk 0:03:41]} 7.
Bxc4 {[%clk 0:04:49.4]} 7... cxd4 {[%clk 0:03:35.5]} 8. exd4 {[%clk 0:04:48.8]}
8... Nc6 {[%clk 0:03:33.7]} 9. d5 {[%clk 0:04:48.2]} 9... exd5 {[%clk
0:03:31.2]} 10. Nxd5 {[%clk 0:04:47.5]} 10... Be6 {[%clk 0:03:25.6]} 11. Nxf6+
{[%clk 0:04:38.2]} 11... Qxf6 {[%clk 0:02:13.5]} 12. Qe2 {[%clk 0:04:25.8]}
12... Be7 {[%clk 0:01:46.9]} 13. Bxe6 {[%clk 0:04:24]} 13... Qxe6 {[%clk
0:01:44.4]} 14. Qxe6 {[%clk 0:04:22.7]} 14... fxe6 {[%clk 0:01:43.4]} 15. Ke2
{[%clk 0:04:21.7]} 15... O-O-O {[%clk 0:01:40.4]} 16. Be3 {[%clk 0:04:20.7]}
16... Bf6 {[%clk 0:01:35.5]} 17. Rab1 {[%clk 0:04:18.7]} 17... Nd4+ {[%clk
0:01:31.6]} 18. Bxd4 {[%clk 0:04:17.4]} 18... Bxd4 {[%clk 0:01:29.6]} 19. Rhc1+
{[%clk 0:04:16.2]} 19... Kb8 {[%clk 0:01:23.1]} 20. Rc4 {[%clk 0:04:13]} 20...
Bf6 {[%clk 0:01:16.6]} 21. b4 {[%clk 0:04:10.6]} 21... Rc8 {[%clk 0:01:15.4]}
22. Rbc1 {[%clk 0:04:09.5]} 22... Rxc4 {[%clk 0:01:13.1]} 23. Rxc4 {[%clk
0:04:09.4]} 23... Rc8 {[%clk 0:01:11.1]} 24. Kd3 {[%clk 0:04:08.4]} 24... Rxc4
{[%clk 0:01:09]} 25. Kxc4 {[%clk 0:04:07.7]} 25... Kc7 {[%clk 0:01:07.4]} 26.
Nd2 {[%clk 0:04:05.6]} 26... Kc6 {[%clk 0:01:00.7]} 27. b5+ {[%clk 0:04:04.2]}
27... Kd6 {[%clk 0:00:57]} 28. Ne4+ {[%clk 0:04:03.4]} 28... Kc7 {[%clk
0:00:53]} 29. Nc5 {[%clk 0:04:02.4]} 29... e5 {[%clk 0:00:42.2]} 30. Kd5 {[%clk
0:04:00.1]} 30... b6 {[%clk 0:00:32.2]} 31. Ne6+ {[%clk 0:03:58.6]} 31... Kd7
{[%clk 0:00:30.2]} 32. Nf8+ {[%clk 0:03:56.5]} 32... Ke7 {[%clk 0:00:26.2]} 33.
Nxh7 {[%clk 0:03:55.7]} 1-0

[Event "Live Chess"]
[Site "Chess.com"]
[Date "2024.06.01"]
[Round "-"]
[White "booktrunk"]
[Black "WelshTiger"]
[Result "0-1"]
[WhiteElo "1397"]
[BlackElo "2520"]
[TimeControl "300"]
[EndTime "13:56:33 PDT"]
[Termination "WelshTiger won by resignation"]

1. e4 {[%clk 0:04:52.6]} 1... c6 {[%clk 0:04:56.1]} 2. Nf3 {[%clk 0:04:51.3]}
2... d5 {[%clk 0:04:56]} 3. exd5 {[%clk 0:04:49.7]} 3... cxd5 {[%clk 0:04:54.9]}
4. Be2 {[%clk 0:04:45.3]} 4... Nf6 {[%clk 0:04:52.8]} 5. O-O {[%clk 0:04:44]}
5... Nc6 {[%clk 0:04:47.7]} 6. Bb5 {[%clk 0:04:40.4]} 6... e6 {[%clk 0:04:43.8]}
7. Nd4 {[%clk 0:04:36.3]} 7... Bd7 {[%clk 0:04:42.1]} 8. Nxc6 {[%clk 0:04:31.9]}
8... bxc6 {[%clk 0:04:41.2]} 9. Bd3 {[%clk 0:04:30.4]} 9... Bd6 {[%clk
0:04:39.1]} 10. c4 {[%clk 0:04:28.7]} 10... Qc7 {[%clk 0:04:34.3]} 11. g3 {[%clk
0:04:26.5]} 11... O-O {[%clk 0:04:27.6]} 12. cxd5 {[%clk 0:04:24.9]} 12... cxd5
{[%clk 0:04:15.3]} 13. Be2 {[%clk 0:04:24.8]} 13... e5 {[%clk 0:04:07.1]} 14.
Bd3 {[%clk 0:04:24.7]} 14... e4 {[%clk 0:04:05.2]} 15. Qc2 {[%clk 0:04:24.6]}
15... exd3 {[%clk 0:04:03.9]} 16. Qxd3 {[%clk 0:04:18.5]} 16... Qc4 {[%clk
0:03:58.3]} 17. Qxc4 {[%clk 0:04:15.4]} 17... dxc4 {[%clk 0:03:57.2]} 18. Nc3
{[%clk 0:04:14.3]} 18... Rfe8 {[%clk 0:03:51.8]} 19. Na4 {[%clk 0:04:08]} 19...
Bxa4 {[%clk 0:03:49.2]} 0-1

[Event "Live Chess"]
[Site "Chess.com"]
[Date "2024.06.01"]
[Round "-"]
[White "degringolade64"]
[Black "OxonChess"]
[Result "0-1"]
[WhiteElo "2125"]
[BlackElo "1758"]
[TimeControl "300"]
[EndTime "13:57:07 PDT"]
[Termination "OxonChess won by resignation"]

1. e4 {[%clk 0:04:57.2]} 1... c5 {[%clk 0:04:58.5]} 2. Nf3 {[%clk 0:04:56.2]}
2... Nc6 {[%clk 0:04:57.3]} 3. Bb5 {[%clk 0:04:54.7]} 3... g6 {[%clk 0:04:54]}
4. Bxc6 {[%clk 0:04:52.4]} 4... dxc6 {[%clk 0:04:53.2]} 5. d3 {[%clk 0:04:51.7]}
5... Nf6 {[%clk 0:04:51.5]} 6. h3 {[%clk 0:04:50]} 6... Nd7 {[%clk 0:04:48.8]}
7. Bd2 {[%clk 0:04:36.2]} 7... Bg7 {[%clk 0:04:46.4]} 8. Bc3 {[%clk 0:04:35.4]}
8... e5 {[%clk 0:04:44.9]} 9. Nbd2 {[%clk 0:04:34]} 9... Qc7 {[%clk 0:04:42.3]}
10. a4 {[%clk 0:04:31.2]} 10... Nf8 {[%clk 0:04:41.2]} 11. a5 {[%clk 0:04:29.6]}
11... Ne6 {[%clk 0:04:39.8]} 12. Nc4 {[%clk 0:04:22.6]} 12... f6 {[%clk
0:04:28.9]} 13. O-O {[%clk 0:04:20]} 13... O-O {[%clk 0:04:25.2]} 14. Qb1 {[%clk
0:03:58.8]} 14... Nd4 {[%clk 0:04:20.4]} 15. Bxd4 {[%clk 0:03:53.1]} 15... cxd4
{[%clk 0:04:19.2]} 16. b4 {[%clk 0:03:50.5]} 16... Be6 {[%clk 0:04:16.2]} 17.
Nfd2 {[%clk 0:03:42.4]} 17... b5 {[%clk 0:04:03.9]} 18. axb6 {[%clk 0:03:40.2]}
18... axb6 {[%clk 0:04:02.7]} 19. Qb2 {[%clk 0:03:26.3]} 19... Rfb8 {[%clk
0:03:49.5]} 20. Ra3 {[%clk 0:03:21.3]} 20... Rxa3 {[%clk 0:03:36.1]} 21. Qxa3
{[%clk 0:03:21.2]} 21... Bf8 {[%clk 0:03:31.4]} 22. Ra1 {[%clk 0:03:14.4]} 22...
Qb7 {[%clk 0:03:21.5]} 23. Qb2 {[%clk 0:03:01.3]} 23... Be7 {[%clk 0:03:09.1]}
24. f4 {[%clk 0:02:55.2]} 24... Qc7 {[%clk 0:03:02.5]} 25. fxe5 {[%clk
0:02:53.1]} 25... fxe5 {[%clk 0:03:00.7]} 26. Ra6 {[%clk 0:02:47.7]} 26... Kg7
{[%clk 0:02:38.5]} 27. c3 {[%clk 0:02:26.6]} 27... c5 {[%clk 0:02:29.1]} 28.
bxc5 {[%clk 0:02:23.2]} 28... bxc5 {[%clk 0:02:27.7]} 29. Qa3 {[%clk 0:02:16.4]}
29... Bc8 {[%clk 0:02:18.2]} 30. Ra7 {[%clk 0:02:14.4]} 30... Rb7 {[%clk
0:02:16.9]} 31. Rxb7 {[%clk 0:02:10]} 31... Bxb7 {[%clk 0:02:12.7]} 32. cxd4
{[%clk 0:02:04.3]} 32... cxd4 {[%clk 0:02:05.3]} 33. Qa4 {[%clk 0:01:52.9]}
33... Bg5 {[%clk 0:01:56.9]} 34. Nf3 {[%clk 0:01:49.9]} 34... Bf4 {[%clk
0:01:47.5]} 35. Qe8 {[%clk 0:01:46.2]} 35... Bxe4 {[%clk 0:01:41.6]} 36. Nfxe5
{[%clk 0:01:01]} 36... Bxe5 {[%clk 0:01:28.1]} 37. Nxe5 {[%clk 0:00:40.3]} 37...
Qc1+ {[%clk 0:01:16.6]} 38. Kh2 {[%clk 0:00:36.9]} 38... Qf4+ {[%clk 0:01:10.8]}
39. Kg1 {[%clk 0:00:35.6]} 39... Qe3+ {[%clk 0:01:08.3]} 40. Kh2 {[%clk
0:00:31.5]} 40... Bxd3 {[%clk 0:00:58]} 41. Qe7+ {[%clk 0:00:18.5]} 41... Kh6
{[%clk 0:00:51.5]} 42. Ng4+ {[%clk 0:00:17.2]} 42... Kh5 {[%clk 0:00:48.4]} 43.
Qxh7+ {[%clk 0:00:15.6]} 43... Kg5 {[%clk 0:00:47.3]} 44. Nxe3 {[%clk
0:00:15.1]} 44... dxe3 {[%clk 0:00:45.8]} 45. Qe7+ {[%clk 0:00:14.1]} 45... Kf4
{[%clk 0:00:40.4]} 46. Qd6+ {[%clk 0:00:13.4]} 46... Ke4 {[%clk 0:00:38.7]} 47.
Qxd3+ {[%clk 0:00:13.3]} 47... Kxd3 {[%clk 0:00:37.6]} 48. Kg1 {[%clk
0:00:11.9]} 48... Kd2 {[%clk 0:00:36.4]} 0-1

[Event "Live Chess"]
[Site "Chess.com"]
[Date "2024.06.01"]
[Round "-"]
[White "jimwad"]
[Black "ProfPoisson"]
[Result "1-0"]
[WhiteElo "1296"]
[BlackElo "1284"]
[TimeControl "300"]
[EndTime "13:57:15 PDT"]
[Termination "jimwad won on time"]

1. c4 {[%clk 0:04:58.6]} 1... e6 {[%clk 0:04:55.9]} 2. g3 {[%clk 0:04:57.5]}
2... f5 {[%clk 0:04:51.8]} 3. Bg2 {[%clk 0:04:55.6]} 3... Nf6 {[%clk 0:04:51.3]}
4. Nc3 {[%clk 0:04:54.3]} 4... Be7 {[%clk 0:04:49.7]} 5. e3 {[%clk 0:04:53.1]}
5... O-O {[%clk 0:04:48.9]} 6. Nge2 {[%clk 0:04:52.1]} 6... d6 {[%clk
0:04:47.6]} 7. O-O {[%clk 0:04:51]} 7... e5 {[%clk 0:04:40.7]} 8. d4 {[%clk
0:04:49.3]} 8... e4 {[%clk 0:04:19.9]} 9. b4 {[%clk 0:04:40.8]} 9... c6 {[%clk
0:04:14.8]} 10. a3 {[%clk 0:04:39.5]} 10... Qe8 {[%clk 0:04:11.1]} 11. Bb2
{[%clk 0:04:35.3]} 11... Qh5 {[%clk 0:04:05.7]} 12. Nf4 {[%clk 0:04:31]} 12...
Qh6 {[%clk 0:03:59]} 13. d5 {[%clk 0:04:25]} 13... Ng4 {[%clk 0:03:54.2]} 14. h3
{[%clk 0:04:22]} 14... Ne5 {[%clk 0:03:39.4]} 15. Nce2 {[%clk 0:04:16.1]} 15...
g5 {[%clk 0:03:26.2]} 16. Bxe5 {[%clk 0:04:05.6]} 16... dxe5 {[%clk 0:03:22]}
17. Ne6 {[%clk 0:03:52.9]} 17... Bxe6 {[%clk 0:03:17.5]} 18. dxe6 {[%clk
0:03:51.6]} 18... Qxe6 {[%clk 0:03:11.4]} 19. Rc1 {[%clk 0:03:49.8]} 19... f4
{[%clk 0:02:58.4]} 20. exf4 {[%clk 0:03:44.1]} 20... exf4 {[%clk 0:02:54.8]} 21.
Nd4 {[%clk 0:03:37.6]} 21... Qh6 {[%clk 0:02:45.5]} 22. Qg4 {[%clk 0:03:22.8]}
22... f3 {[%clk 0:02:25.3]} 23. Bh1 {[%clk 0:03:13.2]} 23... Na6 {[%clk
0:02:01.6]} 24. Qe6+ {[%clk 0:03:06.9]} 24... Qxe6 {[%clk 0:01:58.5]} 25. Nxe6
{[%clk 0:03:05.8]} 25... Rf6 {[%clk 0:01:49.8]} 26. Nd4 {[%clk 0:02:59.3]} 26...
Rd8 {[%clk 0:01:43.2]} 27. Nb3 {[%clk 0:02:52.4]} 27... Rd3 {[%clk 0:01:27.6]}
28. Nd2 {[%clk 0:02:44]} 28... Rxd2 {[%clk 0:01:25.2]} 29. Rce1 {[%clk 0:02:37]}
29... Re6 {[%clk 0:01:19.7]} 30. Bxf3 {[%clk 0:02:35.4]} 30... Rd4 {[%clk
0:01:08]} 31. Bg4 {[%clk 0:02:29.7]} 31... Re5 {[%clk 0:01:02.6]} 32. f4 {[%clk
0:02:21.5]} 32... gxf4 {[%clk 0:00:59.7]} 33. Rxf4 {[%clk 0:02:19.7]} 33... Rxc4
{[%clk 0:00:53.1]} 34. Bf3 {[%clk 0:02:12]} 34... Bg5 {[%clk 0:00:43.9]} 35.
Rfxe4 {[%clk 0:02:10.4]} 35... Rcxe4 {[%clk 0:00:31.8]} 36. Rxe4 {[%clk
0:02:06.6]} 36... Rxe4 {[%clk 0:00:29.2]} 37. Bxe4 {[%clk 0:02:05.6]} 37... Nc7
{[%clk 0:00:27.8]} 38. a4 {[%clk 0:02:00.3]} 38... Bd2 {[%clk 0:00:26.7]} 39. b5
{[%clk 0:01:59]} 39... cxb5 {[%clk 0:00:24.2]} 40. axb5 {[%clk 0:01:58.1]} 40...
Nxb5 {[%clk 0:00:23.4]} 41. Bxb7 {[%clk 0:01:57.2]} 41... a5 {[%clk 0:00:21.7]}
42. Bd5+ {[%clk 0:01:53.6]} 42... Kg7 {[%clk 0:00:16.7]} 43. g4 {[%clk 0:01:50]}
43... a4 {[%clk 0:00:15.6]} 44. Kf1 {[%clk 0:01:45.6]} 44... Nc3 {[%clk
0:00:14.9]} 45. Be6 {[%clk 0:01:39.3]} 45... a3 {[%clk 0:00:14.7]} 46. Kf2
{[%clk 0:01:35.2]} 46... Kf6 {[%clk 0:00:14.3]} 47. Bg8 {[%clk 0:01:33.2]} 47...
a2 {[%clk 0:00:11.2]} 48. Bxa2 {[%clk 0:01:31.9]} 48... Nxa2 {[%clk 0:00:10.7]}
49. Ke2 {[%clk 0:01:31.7]} 49... Bg5 {[%clk 0:00:08]} 50. Kf3 {[%clk 0:01:30.4]}
50... Ke5 {[%clk 0:00:05.5]} 51. Kg3 {[%clk 0:01:29.2]} 51... Nc3 {[%clk
0:00:04.9]} 52. h4 {[%clk 0:01:28.2]} 52... Ne4+ {[%clk 0:00:04.8]} 53. Kf3
{[%clk 0:01:26.8]} 53... Bxh4 {[%clk 0:00:00.4]} 54. Ke3 {[%clk 0:01:18.5]} 1-0

[Event "Live Chess"]
[Site "Chess.com"]
[Date "2024.06.01"]
[Round "-"]
[White "McFim"]
[Black "Brooms1989"]
[Result "1-0"]
[WhiteElo "1596"]
[BlackElo "1121"]
[TimeControl "300"]
[EndTime "13:57:18 PDT"]
[Termination "McFim won by resignation"]

1. e4 {[%clk 0:04:56.2]} 1... e5 {[%clk 0:04:57.9]} 2. Nf3 {[%clk 0:04:54.7]}
2... Nc6 {[%clk 0:04:56.9]} 3. Bb5 {[%clk 0:04:53]} 3... a6 {[%clk 0:04:55.9]}
4. Ba4 {[%clk 0:04:51.5]} 4... Nf6 {[%clk 0:04:54.9]} 5. O-O {[%clk 0:04:49.9]}
5... Nxe4 {[%clk 0:04:53.9]} 6. d4 {[%clk 0:04:47.1]} 6... b5 {[%clk 0:04:44.8]}
7. Bb3 {[%clk 0:04:45.5]} 7... d5 {[%clk 0:04:42.4]} 8. dxe5 {[%clk 0:04:39.6]}
8... Be6 {[%clk 0:04:41.8]} 9. c3 {[%clk 0:04:36.8]} 9... Na5 {[%clk 0:04:38.8]}
10. Nbd2 {[%clk 0:04:34.4]} 10... Nxb3 {[%clk 0:04:35.7]} 11. Nxb3 {[%clk
0:04:33]} 11... c6 {[%clk 0:04:32]} 12. Nbd4 {[%clk 0:04:30.7]} 12... Bd7 {[%clk
0:04:23.1]} 13. Nd2 {[%clk 0:04:24.4]} 13... Nxd2 {[%clk 0:04:19.4]} 14. Bxd2
{[%clk 0:04:21.8]} 14... Be7 {[%clk 0:04:18.7]} 15. Qe2 {[%clk 0:04:15]} 15...
O-O {[%clk 0:04:06.4]} 16. e6 {[%clk 0:04:12.9]} 16... fxe6 {[%clk 0:03:51.4]}
17. Nxe6 {[%clk 0:04:10.7]} 17... Bxe6 {[%clk 0:03:50.6]} 18. Qxe6+ {[%clk
0:04:08.5]} 18... Kh8 {[%clk 0:03:48.4]} 19. Qxc6 {[%clk 0:04:06.6]} 19... Qe8
{[%clk 0:03:35.1]} 20. Qxd5 {[%clk 0:03:58.6]} 1-0

[Event "Live Chess"]
[Site "Chess.com"]
[Date "2024.06.01"]
[Round "-"]
[White "matt1979"]
[Black "Eva3337"]
[Result "1-0"]
[WhiteElo "1374"]
[BlackElo "1165"]
[TimeControl "300"]
[EndTime "13:57:30 PDT"]
[Termination "matt1979 won on time"]

1. f4 {[%clk 0:04:59]} 1... e6 {[%clk 0:04:52.6]} 2. Nf3 {[%clk 0:04:57]} 2...
b6 {[%clk 0:04:45.8]} 3. e4 {[%clk 0:04:53]} 3... Bb7 {[%clk 0:04:43.8]} 4. d3
{[%clk 0:04:52.1]} 4... d5 {[%clk 0:04:39.8]} 5. e5 {[%clk 0:04:50.1]} 5... d4
{[%clk 0:04:30.2]} 6. Be2 {[%clk 0:04:43.5]} 6... f6 {[%clk 0:04:21.5]} 7. O-O
{[%clk 0:04:37.4]} 7... Bxf3 {[%clk 0:04:10.4]} 8. Bxf3 {[%clk 0:04:35.3]} 8...
c6 {[%clk 0:04:02.3]} 9. Nd2 {[%clk 0:04:14.3]} 9... f5 {[%clk 0:03:55.5]} 10.
Nc4 {[%clk 0:04:08.8]} 10... Qd7 {[%clk 0:03:40.9]} 11. Qe1 {[%clk 0:03:54.4]}
11... Na6 {[%clk 0:03:28.8]} 12. Qg3 {[%clk 0:03:37.9]} 12... Nh6 {[%clk
0:03:19.8]} 13. Nd6+ {[%clk 0:03:28.9]} 13... Kd8 {[%clk 0:03:13.2]} 14. Bd2
{[%clk 0:03:09.4]} 14... Ng4 {[%clk 0:03:04.4]} 15. Bxg4 {[%clk 0:03:04.2]}
15... fxg4 {[%clk 0:03:01.1]} 16. Qxg4 {[%clk 0:03:03.1]} 16... Kc7 {[%clk
0:02:50.1]} 17. Ne4 {[%clk 0:02:53.4]} 17... Bb4 {[%clk 0:02:33.5]} 18. a3
{[%clk 0:02:44.1]} 18... Bxd2 {[%clk 0:02:23.4]} 19. Nxd2 {[%clk 0:02:42.5]}
19... Nc5 {[%clk 0:02:18.8]} 20. Rf3 {[%clk 0:02:34.2]} 20... Rhg8 {[%clk
0:02:16]} 21. Rh3 {[%clk 0:02:24.9]} 21... h6 {[%clk 0:02:11.8]} 22. Rg3 {[%clk
0:02:16.4]} 22... Raf8 {[%clk 0:02:04.3]} 23. b4 {[%clk 0:02:04.6]} 23... Na4
{[%clk 0:01:55.7]} 24. Rb1 {[%clk 0:01:31.4]} 24... Nc3 {[%clk 0:01:53]} 25. Rb3
{[%clk 0:01:29.3]} 25... g5 {[%clk 0:01:24.5]} 26. Qh5 {[%clk 0:01:01.4]} 26...
gxf4 {[%clk 0:01:14.8]} 27. Rxg8 {[%clk 0:00:59.3]} 27... Rxg8 {[%clk
0:01:13.4]} 28. Qxh6 {[%clk 0:00:52.2]} 28... Ne2+ {[%clk 0:01:03.9]} 29. Kf2
{[%clk 0:00:46]} 29... Qd5 {[%clk 0:00:25.3]} 30. Nf3 {[%clk 0:00:36.6]} 30...
Qd7 {[%clk 0:00:17.4]} 31. Kxe2 {[%clk 0:00:33.5]} 31... Rxg2+ {[%clk
0:00:14.6]} 32. Kf1 {[%clk 0:00:29]} 32... Rxc2 {[%clk 0:00:07.3]} 33. Nxd4
{[%clk 0:00:22.7]} 33... Rc1+ {[%clk 0:00:05.5]} 34. Ke2 {[%clk 0:00:20.2]}
34... Qxd4 {[%clk 0:00:03.9]} 35. Qh3 {[%clk 0:00:09.9]} 1-0

[Event "Live Chess"]
[Site "Chess.com"]
[Date "2024.06.01"]
[Round "-"]
[White "PatientChessPapa"]
[Black "Ferrarifan27"]
[Result "0-1"]
[WhiteElo "802"]
[BlackElo "2060"]
[TimeControl "300"]
[EndTime "13:57:32 PDT"]
[Termination "Ferrarifan27 won by resignation"]

1. e4 {[%clk 0:04:56.5]} 1... e5 {[%clk 0:04:49.9]} 2. Nf3 {[%clk 0:04:55]} 2...
Nc6 {[%clk 0:04:47.5]} 3. d4 {[%clk 0:04:53.5]} 3... exd4 {[%clk 0:04:46.2]} 4.
Nxd4 {[%clk 0:04:52.3]} 4... Qh4 {[%clk 0:04:45.3]} 5. Nc3 {[%clk 0:04:44.6]}
5... Bb4 {[%clk 0:04:43]} 6. Be2 {[%clk 0:04:43.4]} 6... Nf6 {[%clk 0:04:32.5]}
7. g3 {[%clk 0:04:36.4]} 7... Qxe4 {[%clk 0:04:27.7]} 8. O-O {[%clk 0:03:56.6]}
8... Qxd4 {[%clk 0:04:23.1]} 9. Qxd4 {[%clk 0:03:35.8]} 9... Nxd4 {[%clk
0:04:23]} 10. Bd3 {[%clk 0:03:22.3]} 10... O-O {[%clk 0:04:17.2]} 11. a3 {[%clk
0:03:10]} 11... Bxc3 {[%clk 0:04:15.6]} 12. bxc3 {[%clk 0:03:09]} 12... Nf3+
{[%clk 0:04:06.9]} 13. Kh1 {[%clk 0:03:04.9]} 13... d6 {[%clk 0:03:55.1]} 14.
Rb1 {[%clk 0:02:52.6]} 14... Bh3 {[%clk 0:03:47.1]} 15. Rd1 {[%clk 0:02:38.3]}
15... Ng4 {[%clk 0:03:45.8]} 16. Be3 {[%clk 0:02:28.4]} 16... Rfe8 {[%clk
0:03:42.8]} 17. Rf1 {[%clk 0:02:06.4]} 17... Bxf1 {[%clk 0:03:35.4]} 18. Bxf1
{[%clk 0:02:05.2]} 18... Nxe3 {[%clk 0:03:34.2]} 19. fxe3 {[%clk 0:02:03.9]}
19... b6 {[%clk 0:03:27.4]} 20. Bg2 {[%clk 0:02:02.2]} 20... Rxe3 {[%clk
0:03:26]} 21. Rf1 {[%clk 0:01:55.1]} 21... Nd2 {[%clk 0:03:19.1]} 22. Rd1 {[%clk
0:01:36.3]} 22... Rae8 {[%clk 0:03:17.6]} 23. h4 {[%clk 0:01:17.4]} 23... Re1+
{[%clk 0:03:15.9]} 24. Rxe1 {[%clk 0:01:16.3]} 24... Rxe1+ {[%clk 0:03:15.4]}
25. Kh2 {[%clk 0:01:15.3]} 25... Rc1 {[%clk 0:03:12]} 26. Bd5 {[%clk 0:01:08.9]}
26... Rxc2 {[%clk 0:03:08.7]} 27. c4 {[%clk 0:01:06.7]} 27... Nxc4+ {[%clk
0:03:07]} 28. Kh3 {[%clk 0:01:05.1]} 28... Nxa3 {[%clk 0:03:04.6]} 0-1

[Event "Live Chess"]
[Site "Chess.com"]
[Date "2024.06.01"]
[Round "-"]
[White "road2gm5000"]
[Black "StoreySniper"]
[Result "0-1"]
[WhiteElo "1082"]
[BlackElo "2535"]
[TimeControl "300"]
[EndTime "13:57:34 PDT"]
[Termination "StoreySniper won by checkmate"]

1. e4 {[%clk 0:04:58.1]} 1... g6 {[%clk 0:04:58.8]} 2. d4 {[%clk 0:04:56.8]}
2... Bg7 {[%clk 0:04:58.5]} 3. Nf3 {[%clk 0:04:56]} 3... c5 {[%clk 0:04:58.1]}
4. Be3 {[%clk 0:04:53.8]} 4... Nc6 {[%clk 0:04:54.6]} 5. Nc3 {[%clk 0:04:50.4]}
5... Qa5 {[%clk 0:04:49.1]} 6. Bb5 {[%clk 0:04:39.6]} 6... cxd4 {[%clk
0:04:39.9]} 7. Nxd4 {[%clk 0:04:37.6]} 7... Nf6 {[%clk 0:04:33.9]} 8. Bxc6
{[%clk 0:04:34.7]} 8... bxc6 {[%clk 0:04:28.3]} 9. O-O {[%clk 0:04:31.6]} 9...
Rb8 {[%clk 0:04:22.6]} 10. Nb3 {[%clk 0:04:25.2]} 10... Qc7 {[%clk 0:04:19.8]}
11. Qd2 {[%clk 0:04:20.7]} 11... Ng4 {[%clk 0:04:10]} 12. Bf4 {[%clk 0:04:17.2]}
12... Be5 {[%clk 0:04:08.1]} 13. Bxe5 {[%clk 0:04:07.2]} 13... Qxe5 {[%clk
0:04:06.4]} 14. f4 {[%clk 0:03:57.6]} 14... Qc7 {[%clk 0:04:03.4]} 15. h3 {[%clk
0:03:56]} 15... Qb6+ {[%clk 0:04:00.4]} 16. Kh1 {[%clk 0:03:43.8]} 16... Ne3
{[%clk 0:03:58]} 17. Rfe1 {[%clk 0:03:35.4]} 17... Nc4 {[%clk 0:03:54.4]} 18.
Qc1 {[%clk 0:03:21.1]} 18... O-O {[%clk 0:03:52]} 19. Rb1 {[%clk 0:03:19.4]}
19... Bb7 {[%clk 0:03:46.8]} 20. Qd1 {[%clk 0:03:17.8]} 20... Rbd8 {[%clk
0:03:37.6]} 21. Qd3 {[%clk 0:03:09.5]} 21... d5 {[%clk 0:03:34.7]} 22. exd5
{[%clk 0:02:47.8]} 22... cxd5 {[%clk 0:03:33.4]} 23. Rxe7 {[%clk 0:02:42.8]}
23... Nd6 {[%clk 0:03:13.8]} 24. Qd4 {[%clk 0:02:28.4]} 24... Ba8 {[%clk
0:02:40.7]} 25. Qxb6 {[%clk 0:02:23.3]} 25... axb6 {[%clk 0:02:40]} 26. Rbe1
{[%clk 0:02:15.6]} 26... Nf5 {[%clk 0:02:38.3]} 27. Ra7 {[%clk 0:01:47.2]} 27...
d4 {[%clk 0:02:35.1]} 28. Na4 {[%clk 0:01:39.8]} 28... Ne3 {[%clk 0:02:31.2]}
29. Nxb6 {[%clk 0:01:34.3]} 29... Bxg2+ {[%clk 0:02:29.3]} 30. Kh2 {[%clk
0:01:28.6]} 30... Bc6 {[%clk 0:02:02.9]} 31. Nxd4 {[%clk 0:01:18.3]} 31... Rxd4
{[%clk 0:02:00.7]} 32. Rxe3 {[%clk 0:01:16.5]} 32... Rd2+ {[%clk 0:01:59.8]} 33.
Kg3 {[%clk 0:01:11.1]} 33... Rg2+ {[%clk 0:01:51.4]} 34. Kh4 {[%clk 0:01:08.7]}
34... h6 {[%clk 0:01:44.6]} 35. Rg3 {[%clk 0:01:00.9]} 35... Rxc2 {[%clk
0:01:40.1]} 36. f5 {[%clk 0:00:45.8]} 36... g5+ {[%clk 0:01:23.6]} 37. Kh5
{[%clk 0:00:34.5]} 37... Kg7 {[%clk 0:01:20.9]} 38. h4 {[%clk 0:00:32.8]} 38...
Rh2 {[%clk 0:01:16.6]} 39. Rg4 {[%clk 0:00:25.6]} 39... Bf3 {[%clk 0:01:15.7]}
40. Nd7 {[%clk 0:00:19.5]} 40... Rxh4# {[%clk 0:01:13.3]} 0-1